[Event "Titled Tuesday Blitz June 8 2021"]
[White "Terry, Renato"]
[Black "Nesterov, Arseniy"]
[WhiteFideId "3803457"]
[BlackFideId "24198455"]
[WhiteElo "2581"]
[BlackElo "2441"]
[Result "0-1"]
[Round "11"]
[TimeControl "180+1"]
[Date "2021.06.08"]
[WhiteClock "0:00:01"]
[BlackClock "0:00:04"]

1. d4 {[%clk 0:02:59]}  d5 {[%clk 0:03:00]} 2. Nf3 {[%clk 0:02:59]}  Nf6 {[%clk 0:03:00]} 3. c4 {[%clk 0:02:59]}  c6 {[%clk 0:02:57]} 4. Nc3 {[%clk 0:02:59]}  dxc4 {[%clk 0:02:54]} 5. a4 {[%clk 0:02:59]}  a5 {[%clk 0:02:53]} 6. e4 {[%clk 0:02:51]}  Bg4 {[%clk 0:02:53]} 7. Bxc4 {[%clk 0:02:51]}  e6 {[%clk 0:02:53]} 8. Be3 {[%clk 0:02:50]}  Bb4 {[%clk 0:02:52]} 9. Qc2 {[%clk 0:02:50]}  O-O {[%clk 0:02:48]} 10. Ne5 {[%clk 0:02:49]}  Bh5 {[%clk 0:02:47]} 11. f3 {[%clk 0:02:42]}  Nbd7 {[%clk 0:02:43]} 12. g4 {[%clk 0:02:23]}  Nxe5 {[%clk 0:02:09]} 13. dxe5 {[%clk 0:02:20]}  Nxg4 {[%clk 0:02:10]} 14. fxg4 {[%clk 0:02:19]}  Qh4+ {[%clk 0:02:10]} 15. Bf2 {[%clk 0:01:02]}  Qxg4 {[%clk 0:02:09]} 16. Rg1 {[%clk 0:01:02]}  Qf4 {[%clk 0:02:00]} 17. Qd2 {[%clk 0:01:01]}  Bxc3 {[%clk 0:01:22]} 18. bxc3 {[%clk 0:00:30]}  Qxe4+ {[%clk 0:01:21]} 19. Be2 {[%clk 0:00:31]}  Bg6 {[%clk 0:00:44]} 20. Qe3 {[%clk 0:00:23]}  Qc2 {[%clk 0:00:44]} 21. h4 {[%clk 0:00:23]}  h5 {[%clk 0:00:39]} 22. Rc1 {[%clk 0:00:13]}  Qxa4 {[%clk 0:00:36]} 23. Qg5 {[%clk 0:00:13]}  Qe4 {[%clk 0:00:35]} 24. Kf1 {[%clk 0:00:09]}  a4 {[%clk 0:00:25]} 25. Bxh5 {[%clk 0:00:04]}  Ra5 {[%clk 0:00:23]} 26. Bxg6 {[%clk 0:00:01]}  fxg6 {[%clk 0:00:22]} 27. Qxg6 {[%clk 0:00:02]}  Qc4+ {[%clk 0:00:20]} 28. Kg2 {[%clk 0:00:02]}  Rxe5 {[%clk 0:00:18]} 29. Bd4 {[%clk 0:00:02]}  Re2+ {[%clk 0:00:13]} 30. Kh1 {[%clk 0:00:02]}  Qd5+ {[%clk 0:00:13]} 31. Rg2 {[%clk 0:00:02]}  Rf7 {[%clk 0:00:09]} 32. Kg1 {[%clk 0:00:02]}  Rxg2+ {[%clk 0:00:07]} 33. Qxg2 {[%clk 0:00:03]}  Qc4 {[%clk 0:00:06]} 34. Re1 {[%clk 0:00:01]}  a3 {[%clk 0:00:06]} 35. h5 {[%clk 0:00:02]}  Kf8 {[%clk 0:00:04]} 36. Be5 {[%clk 0:00:01]}  a2 {[%clk 0:00:04]} 37. Bd6+ {[%clk 0:00:01]}  Kg8 {[%clk 0:00:05]} 38. Be5 {[%clk 0:00:01]}  Qc5+ {[%clk 0:00:05]} 39. Bd4 {[%clk 0:00:02]}  Qxh5 {[%clk 0:00:04]} 40. Qxa2 {[%clk 0:00:01]}  Rf5 {[%clk 0:00:04]} 41. Qxe6+ {[%clk 0:00:01]}  Kh7 {[%clk 0:00:04]} 42. Qe4 {[%clk 0:00:01]}  Qg6+ {[%clk 0:00:04]} 0-1


[Site "https://www.chess.com"]

[Event "Titled Tuesday Blitz June 8 2021"]
[White "Visakh N R"]
[Black "Woodward, Andy"]
[WhiteFideId "25012223"]
[BlackFideId "30953499"]
[WhiteElo "2428"]
[BlackElo "2722"]
[Result "1-0"]
[Round "11"]
[TimeControl "180+1"]
[Date "2021.06.08"]
[WhiteClock "0:01:41"]
[BlackClock "0:00:15"]

1. e4 {[%clk 0:02:43]}  c5 {[%clk 0:02:58]} 2. Nf3 {[%clk 0:02:43]}  d6 {[%clk 0:02:59]} 3. d4 {[%clk 0:02:43]}  cxd4 {[%clk 0:03:00]} 4. Nxd4 {[%clk 0:02:43]}  Nf6 {[%clk 0:03:00]} 5. Nc3 {[%clk 0:02:40]}  a6 {[%clk 0:03:00]} 6. Be3 {[%clk 0:02:35]}  e5 {[%clk 0:02:59]} 7. Nb3 {[%clk 0:02:35]}  Be6 {[%clk 0:02:59]} 8. f3 {[%clk 0:02:35]}  h5 {[%clk 0:02:56]} 9. Qd2 {[%clk 0:02:35]}  Nbd7 {[%clk 0:02:56]} 10. O-O-O {[%clk 0:02:35]}  Rc8 {[%clk 0:02:52]} 11. Kb1 {[%clk 0:02:35]}  Be7 {[%clk 0:02:52]} 12. Nd5 {[%clk 0:02:31]}  Nxd5 {[%clk 0:02:52]} 13. exd5 {[%clk 0:02:31]}  Bf5 {[%clk 0:02:53]} 14. Bd3 {[%clk 0:02:32]}  Bxd3 {[%clk 0:02:53]} 15. Qxd3 {[%clk 0:02:33]}  Bg5 {[%clk 0:02:53]} 16. Bf2 {[%clk 0:02:32]}  Qc7 {[%clk 0:02:53]} 17. h4 {[%clk 0:02:31]}  Bf4 {[%clk 0:02:53]} 18. g3 {[%clk 0:02:30]}  Bh6 {[%clk 0:02:53]} 19. g4 {[%clk 0:02:30]}  Bf4 {[%clk 0:02:54]} 20. g5 {[%clk 0:02:23]}  g6 {[%clk 0:02:44]} 21. Nc1 {[%clk 0:02:16]}  Bxc1 {[%clk 0:02:36]} 22. Rxc1 {[%clk 0:02:17]}  b5 {[%clk 0:02:35]} 23. f4 {[%clk 0:02:14]}  Qc4 {[%clk 0:02:14]} 24. fxe5 {[%clk 0:02:10]}  Nxe5 {[%clk 0:02:14]} 25. Qa3 {[%clk 0:02:08]}  Qxd5 {[%clk 0:01:51]} 26. Rhd1 {[%clk 0:02:03]}  Qe6 {[%clk 0:00:47]} 27. Rxd6 {[%clk 0:01:52]}  Qf5 {[%clk 0:00:38]} 28. Rd5 {[%clk 0:01:48]}  Qe6 {[%clk 0:00:30]} 29. Rxe5 {[%clk 0:01:48]}  Qxe5 {[%clk 0:00:28]} 30. Re1 {[%clk 0:01:48]}  Qxe1+ {[%clk 0:00:28]} 31. Bxe1 {[%clk 0:01:49]}  Rc7 {[%clk 0:00:27]} 32. Bc3 {[%clk 0:01:47]}  Rd7 {[%clk 0:00:27]} 33. Kc1 {[%clk 0:01:46]}  Rf8 {[%clk 0:00:26]} 34. Bf6 {[%clk 0:01:46]}  Rh8 {[%clk 0:00:18]} 35. Qc5 {[%clk 0:01:44]}  Rd8 {[%clk 0:00:15]} 36. Qe7# {[%clk 0:01:41]} 1-0


[Site "https://www.chess.com"]

[Event "Titled Tuesday Blitz June 8 2021"]
[White "Zierk, Steven"]
[Black "Harutjunyan, Gevorg"]
[WhiteFideId "2034255"]
[BlackFideId "13300873"]
[WhiteElo "2502"]
[BlackElo "2498"]
[Result "1-0"]
[Round "11"]
[TimeControl "180+1"]
[Date "2021.06.08"]
[WhiteClock "0:01:41"]
[BlackClock "0:00:28"]

1. e4 {[%clk 0:03:00]}  c6 {[%clk 0:02:59]} 2. d4 {[%clk 0:03:00]}  d5 {[%clk 0:02:59]} 3. exd5 {[%clk 0:03:01]}  cxd5 {[%clk 0:02:59]} 4. Bd3 {[%clk 0:03:02]}  Nf6 {[%clk 0:02:58]} 5. c3 {[%clk 0:03:01]}  Bg4 {[%clk 0:02:58]} 6. Qb3 {[%clk 0:03:01]}  Qc7 {[%clk 0:02:57]} 7. Ne2 {[%clk 0:03:01]}  Nc6 {[%clk 0:02:55]} 8. Bf4 {[%clk 0:03:00]}  Qd7 {[%clk 0:02:54]} 9. Nd2 {[%clk 0:02:55]}  e6 {[%clk 0:02:51]} 10. Ng3 {[%clk 0:02:52]}  Bd6 {[%clk 0:02:35]} 11. Bxd6 {[%clk 0:02:50]}  Qxd6 {[%clk 0:02:36]} 12. h3 {[%clk 0:02:50]}  Bh5 {[%clk 0:02:35]} 13. Qxb7 {[%clk 0:02:33]}  Rb8 {[%clk 0:02:29]} 14. Qa6 {[%clk 0:02:33]}  O-O {[%clk 0:02:14]} 15. Rb1 {[%clk 0:02:25]}  e5 {[%clk 0:02:00]} 16. Nf5 {[%clk 0:02:22]}  Qd8 {[%clk 0:01:12]} 17. Qxc6 {[%clk 0:02:19]}  Rb6 {[%clk 0:01:00]} 18. Qa4 {[%clk 0:02:14]}  Bg6 {[%clk 0:00:57]} 19. dxe5 {[%clk 0:02:09]}  Nd7 {[%clk 0:00:55]} 20. Nf3 {[%clk 0:01:49]}  Nc5 {[%clk 0:00:48]} 21. Qd4 {[%clk 0:01:48]}  Ne6 {[%clk 0:00:32]} 22. Qh4 {[%clk 0:01:44]}  Qc7 {[%clk 0:00:29]} 23. Ne7+ {[%clk 0:01:42]}  Kh8 {[%clk 0:00:28]} 24. Bxg6 {[%clk 0:01:41]} 1-0


[Site "https://www.chess.com"]